bitfinex-derivatives/quotes_BTCF0:USTF0_20250823
["timestamp","ask_amount","ask_price","bid_price","bid_amount"]
[1755976364896,1.21515975,115190.0,115180.0,0.4842692]
[1755976365097,1.21515975,115190.0,115180.0,0.90474323]
[1755976365996,0.8728416,115190.0,115180.0,0.90474323]
[1755976366201,1.21515975,115190.0,115180.0,0.90474323]
[1755976370400,0.8728416,115190.0,115180.0,0.90474323]
[1755976370594,1.21515975,115190.0,115180.0,0.90474323]
[1755976374603,1.21515975,115190.0,115180.0,0.93601874]
[1755976375806,0.8728416,115190.0,115180.0,0.93601874]
[1755976376005,1.21515975,115190.0,115180.0,0.93601874]
[1755976377100,1.21515975,115190.0,115180.0,1.01416757]
[1755976377500,1.21515975,115190.0,115180.0,0.90473618]
[1755976380307,1.21515975,115190.0,115180.0,0.56241803]
[1755976380507,1.21515975,115190.0,115180.0,0.90473618]
[1755976381415,0.0868416,115190.0,115180.0,0.90473618]
[1755976381615,1.21511975,115190.0,115180.0,0.90473618]
[1755976384515,0.8728016,115190.0,115180.0,0.90473618]
[1755976384711,1.21511975,115190.0,115180.0,0.90473618]
[1755976385015,1.21511975,115190.0,115180.0,0.82658735]
[1755976386917,0.42915975,115190.0,115180.0,0.82658735]
[1755976387112,0.8728016,115190.0,115180.0,0.82658735]
[1755976387416,1.21511975,115190.0,115180.0,0.90473618]
[1755976387918,0.8728016,115190.0,115180.0,0.90473618]
[1755976388219,1.21511975,115190.0,115180.0,0.90473618]
[1755976388420,0.8728016,115190.0,115180.0,0.90473618]
[1755976388620,1.21511975,115190.0,115180.0,0.90473618]
[1755976391322,0.8728016,115190.0,115180.0,0.90473618]
[1755976391523,1.21511975,115190.0,115180.0,0.90473618]
[1755976392519,0.0868416,115190.0,115180.0,0.90473618]
[1755976392824,0.78696,115190.0,115180.0,1.26553624]
[1755976393324,0.78696,115190.0,115180.0,1.18738735]
[1755976394224,0.8738016,115190.0,115180.0,1.18738735]
[1755976395023,0.78696,115190.0,115180.0,1.18738735]
[1755976395820,0.001,115190.0,115180.0,1.18738735]
[1755976396020,0.78696,115190.0,115180.0,1.29681874]
[1755976397320,0.78696,115190.0,115180.0,0.95450059]
[1755976397518,0.8738016,115190.0,115180.0,1.29681874]
[1755976401024,0.8738016,115190.0,115180.0,0.95450059]
[1755976401224,0.8738016,115190.0,115180.0,1.29681874]
[1755976406127,0.8738016,115190.0,115180.0,0.95450059]
[1755976406323,0.8738016,115190.0,115180.0,1.29681874]
[1755976407028,0.8738016,115190.0,115180.0,1.37491572]
[1755976407426,0.8738016,115190.0,115180.0,1.26548433]
[1755976416039,0.8738016,115190.0,115180.0,1.18738735]
[1755976417038,0.8738016,115190.0,115180.0,1.26549102]
[1755976419033,0.0878416,115190.0,115180.0,1.26549102]
[1755976419337,0.78688,115190.0,115180.0,1.26549102]
[1755976420346,0.8737216,115190.0,115180.0,1.26549102]
[1755976422745,0.8737216,115190.0,115180.0,0.92317287]
[1755976423043,0.8737216,115190.0,115180.0,1.26549102]
[1755976427147,0.8737216,115190.0,115180.0,1.18738735]
[1755976430745,0.8737216,115190.0,115180.0,0.82658735]
[1755976430946,0.8737216,115190.0,115180.0,1.18738735]
[1755976435154,0.8737216,115190.0,115180.0,0.8450692]
[1755976435348,0.8737216,115190.0,115180.0,1.18738735]
[1755976437150,0.8737216,115190.0,115180.0,1.29681874]
[1755976440755,0.8737216,115190.0,115180.0,1.3145079]
[1755976452368,0.8737216,115190.0,115180.0,0.97218975]
[1755976452561,0.8737216,115190.0,115180.0,1.3145079]
[1755976453957,0.7868,115190.0,115180.0,1.3145079]
[1755976456866,0.7868,115190.0,115180.0,1.20507651]
[1755976459370,0.8736416,115190.0,115180.0,1.20507651]
[1755976461573,0.8736416,115190.0,115180.0,0.84427651]
[1755976461872,0.8736416,115190.0,115180.0,1.20507651]
[1755976463167,1.21595975,115190.0,115180.0,1.26758882]
[1755976463873,1.21595975,115190.0,115180.0,0.87831067]
[1755976464268,1.21595975,115190.0,115180.0,1.20560882]
[1755976464767,1.21595975,115190.0,115180.0,1.25167882]
[1755976465369,1.21595975,115190.0,115180.0,0.92537067]
[1755976465568,1.21595975,115190.0,115180.0,1.26768882]
[1755976466175,1.57675975,115190.0,115180.0,0.47772147]
[1755976466579,1.57675975,115190.0,115180.0,0.82003962]
[1755976466768,1.57675975,115190.0,115180.0,0.41564147]
[1755976466968,1.57675975,115190.0,115180.0,0.38463072]
[1755976467773,1.84579506,115190.0,115180.0,0.29868916]
[1755976467978,1.84579506,115190.0,115180.0,0.32280916]
[1755976469578,1.84579506,115190.0,115180.0,0.001]
[1755976469876,1.95813335,115190.0,115180.0,0.101]
[1755976470077,1.95964478,115190.0,115180.0,0.101]
[1755976470278,2.20964478,115190.0,115180.0,0.101]
[1755976472072,1.86732663,115190.0,115180.0,0.101]
[1755976472883,1.84730649,115190.0,115180.0,0.101]
[1755976473075,2.18962464,115190.0,115180.0,0.101]
[1755976473878,1.84730649,115190.0,115180.0,0.101]
[1755976474582,2.18962464,115190.0,115180.0,0.101]
[1755976474886,1.84730649,115190.0,115180.0,0.101]
[1755976480086,2.18962464,115190.0,115180.0,0.101]
[1755976480788,1.84630649,115190.0,115180.0,0.101]
[1755976480988,1.85230649,115190.0,115180.0,0.101]
[1755976482690,2.19462464,115190.0,115180.0,0.101]
[1755976482883,1.85230649,115190.0,115180.0,0.101]
[1755976483085,2.19462464,115190.0,115180.0,0.101]
[1755976484190,1.85230649,115190.0,115180.0,0.101]
[1755976484791,2.21310649,115190.0,115180.0,0.101]
[1755976485293,2.55542464,115190.0,115180.0,0.101]
[1755976485886,1.42730649,115190.0,115180.0,0.101]
[1755976486086,2.21438649,115190.0,115180.0,0.101]
[1755976486892,2.21438649,115190.0,115180.0,0.12512]
[1755976488400,2.55654464,115190.0,115180.0,0.12512]
[1755976488595,2.55654464,115190.0,115180.0,0.101]
[1755976489488,1.83494464,115190.0,115180.0,0.101]
[1755976489796,2.55654464,115190.0,115180.0,0.001]
[1755976490396,2.57652099,115190.0,115180.0,0.001]
[1755976491499,1.85492099,115190.0,115180.0,0.001]
[1755976491699,1.89188469,115190.0,115180.0,0.001]
[1755976491998,2.57652099,115190.0,115180.0,0.001]
[1755976496894,2.57652099,115190.0,115180.0,0.02512]
[1755976498900,2.32652099,115190.0,115180.0,0.02512]
[1755976499600,0.1025867,115170.0,115160.0,0.17079744]
[1755976499901,3.609483,115170.0,115160.0,0.46079744]
[1755976501402,3.61818865,115170.0,115160.0,0.46079744]
[1755976501601,3.62018865,115170.0,115160.0,0.48551744]
[1755976504402,3.62002865,115170.0,115160.0,0.48551744]
[1755976505604,3.62002865,115170.0,115160.0,0.42299588]
[1755976506405,3.62002865,115170.0,115160.0,0.42536588]
[1755976506708,3.62002865,115170.0,115160.0,0.48788744]
[1755976507111,3.62002865,115170.0,115160.0,0.42536588]
[1755976510116,3.62002865,115170.0,115160.0,0.39039588]
[1755976510416,3.62002865,115170.0,115160.0,0.42536588]
[1755976511310,3.62002865,115170.0,115160.0,0.08595588]
[1755976511615,3.62002865,115170.0,115160.0,0.21274744]
[1755976512708,3.62002865,115170.0,115160.0,0.37274744]
[1755976512909,3.62002865,115170.0,115160.0,0.40771744]
[1755976516614,2.93539235,115170.0,115160.0,0.40771744]
[1755976516807,3.62002865,115170.0,115160.0,0.40771744]
[1755976517009,3.62002865,115170.0,115160.0,0.31652744]
[1755976517316,3.62002865,115170.0,115160.0,0.05400588]
[1755976517710,3.62002865,115170.0,115160.0,0.08761588]
[1755976518618,3.62002865,115170.0,115160.0,0.14519588]
[1755976519117,3.62002865,115170.0,115160.0,0.11022588]
[1755976519712,3.62002865,115170.0,115160.0,0.32022588]
[1755976521419,3.62002865,115170.0,115160.0,0.38278146]
[1755976523821,3.25922865,115170.0,115160.0,0.38278146]
[1755976524022,3.98082865,115170.0,115160.0,0.38278146]
[1755976526424,3.98082865,115170.0,115160.0,0.43262146]
[1755976526623,3.98082865,115170.0,115160.0,0.41775146]
[1755976526923,3.98082865,115170.0,115160.0,0.38278146]
[1755976528319,3.29619235,115170.0,115160.0,0.38278146]
[1755976528523,3.98082865,115170.0,115160.0,0.38278146]
[1755976530420,3.25922865,115170.0,115160.0,0.38278146]
[1755976530725,3.98082865,115170.0,115160.0,0.38278146]
[1755976533424,3.25922865,115170.0,115160.0,0.38278146]
[1755976533633,3.98082865,115170.0,115160.0,0.38278146]
[1755976534324,3.98082865,115170.0,115160.0,0.21278146]
[1755976536444,3.25922865,115170.0,115160.0,0.21278146]
[1755976536644,3.98082865,115170.0,115160.0,0.21278146]
[1755976538642,3.98082865,115170.0,115160.0,0.16645146]
[1755976539146,3.98082865,115170.0,115160.0,0.15656146]
[1755976542650,3.98082865,115170.0,115160.0,0.35656146]
[1755976543653,3.98082865,115170.0,115160.0,0.10656146]
[1755976543947,3.98082865,115170.0,115160.0,0.04400588]
[1755976545949,4.23082865,115170.0,115160.0,0.04400588]
[1755976547451,4.25085188,115170.0,115160.0,0.04400588]
[1755976547650,4.27056207,115170.0,115160.0,0.04400588]
[1755976552054,3.48372207,115170.0,115160.0,0.04400588]
[1755976552354,4.27004207,115170.0,115160.0,0.04400588]
[1755976552554,4.41424207,115170.0,115160.0,0.04400588]
[1755976556758,3.69264207,115170.0,115160.0,0.04400588]
[1755976556957,4.41424207,115170.0,115160.0,0.04400588]
[1755976558764,4.75656022,115170.0,115160.0,0.04400588]
[1755976558957,4.50656022,115170.0,115160.0,0.04400588]
[1755976559153,4.16424207,115170.0,115160.0,0.04400588]
[1755976561765,4.50656022,115170.0,115160.0,0.04400588]
[1755976564668,4.16424207,115170.0,115160.0,0.04400588]
[1755976565666,4.50656022,115170.0,115160.0,0.04400588]
[1755976566068,4.16424207,115170.0,115160.0,0.04400588]
[1755976566263,4.50656022,115170.0,115160.0,0.04400588]
[1755976566961,4.16424207,115170.0,115160.0,0.04400588]
[1755976569874,4.50656022,115170.0,115160.0,0.04400588]
[1755976577479,3.78496022,115170.0,115160.0,0.04400588]
[1755976577976,4.50656022,115170.0,115160.0,0.04400588]
[1755976589085,0.1274043,115160.0,115150.0,0.04850077]
[1755976589288,1.97918383,115160.0,115150.0,0.04850077]
[1755976590175,1.98018383,115160.0,115150.0,0.04950077]
[1755976593184,2.12438383,115160.0,115150.0,0.04950077]
[1755976594177,2.12438383,115160.0,115150.0,0.07247077]
[1755976594381,3.77646383,115160.0,115150.0,0.01692077]
[1755976594772,3.77646383,115160.0,115150.0,0.10530077]
[1755976594976,3.77646383,115160.0,115150.0,0.11940077]
[1755976595275,3.77646383,115160.0,115150.0,0.13561077]
[1755976596287,2.99014383,115160.0,115150.0,0.13561077]
[1755976596486,3.77762383,115160.0,115150.0,0.13561077]
[1755976596677,3.77758383,115160.0,115150.0,0.13561077]
[1755976596878,3.63338383,115160.0,115150.0,0.13561077]
[1755976598582,2.84594383,115160.0,115150.0,0.13561077]
[1755976598886,3.63326383,115160.0,115150.0,0.13561077]
[1755976599786,3.99406383,115160.0,115150.0,0.13561077]
[1755976602692,3.20674383,115160.0,115150.0,0.13561077]
[1755976602888,3.99402383,115160.0,115150.0,0.13561077]
[1755976607293,3.99402383,115160.0,115150.0,0.12151077]
[1755976607491,3.99402383,115160.0,115150.0,0.08832077]
[1755976609194,3.99302383,115160.0,115150.0,0.08732077]
[1755976609390,4.00002383,115160.0,115150.0,0.08832077]
[1755976614900,4.00002383,115160.0,115150.0,0.07211077]
[1755976619710,3.21274383,115160.0,115150.0,0.07211077]
[1755976619905,3.99938383,115160.0,115150.0,0.07211077]
[1755976621009,2.52810753,115160.0,115150.0,0.08730077]
[1755976621309,3.65698568,115160.0,115150.0,0.13522077]
[1755976621508,3.63286568,115160.0,115150.0,0.38522077]
[1755976621700,3.63298568,115160.0,115150.0,0.38522077]
[1755976621899,2.84630568,115160.0,115150.0,0.38522077]
[1755976622104,3.63298568,115160.0,115150.0,0.38522077]
[1755976623712,2.84630568,115160.0,115150.0,0.38522077]
[1755976624013,3.63298568,115160.0,115150.0,0.38522077]
[1755976624812,3.65578568,115160.0,115150.0,0.38522077]
[1755976627114,2.86910568,115160.0,115150.0,0.38522077]
[1755976627414,3.65562568,115160.0,115150.0,0.38522077]
[1755976629014,3.65556214,115160.0,115150.0,0.38522077]
[1755976646126,3.99788029,115160.0,115150.0,0.26692077]
[1755976649929,3.99788029,115160.0,115150.0,0.01692077]
[1755976670348,3.99939216,115160.0,115150.0,0.01692077]
[1755976677548,4.14369216,115160.0,115150.0,0.01692077]
[1755976677850,3.99939216,115160.0,115150.0,0.01692077]
[1755976680651,0.1023318,115150.0,115140.0,0.10394132]
[1755976680949,1.1718881,115150.0,115140.0,0.22394132]
[1755976681143,1.9581681,115150.0,115140.0,0.22394132]
[1755976681950,2.02746897,115150.0,115140.0,0.22394132]
[1755976682146,1.24718897,115150.0,115140.0,0.22494132]
[1755976682346,2.03346897,115150.0,115140.0,0.23457132]
[1755976684253,2.03446897,115150.0,115140.0,0.23457132]
[1755976685355,2.03546897,115150.0,115140.0,0.41557132]
[1755976685854,2.03546897,115150.0,115140.0,0.38205132]
[1755976686751,2.03546897,115150.0,115140.0,0.41516132]
[1755976688658,2.03546897,115150.0,115140.0,0.43788132]
[1755976691568,2.39626897,115150.0,115140.0,0.43788132]
[1755976692954,1.60998897,115150.0,115140.0,0.46979132]
[1755976693263,2.39622897,115150.0,115140.0,0.48388132]
[1755976695252,2.41615773,115150.0,115140.0,0.42132574]
[1755976695861,2.41615773,115150.0,115140.0,0.43786574]
[1755976699462,1.62991773,115150.0,115140.0,0.43786574]
[1755976699663,2.41611773,115150.0,115140.0,0.43786574]
[1755976700464,1.69451773,115150.0,115140.0,0.43786574]
[1755976700664,2.41611773,115150.0,115140.0,0.43786574]
[1755976703462,2.41611773,115150.0,115140.0,0.13949574]
[1755976703662,0.1264594,115140.0,115130.0,0.01967457]
[1755976703854,1.19115864,115140.0,115130.0,0.08223015]
[1755976704060,1.19115864,115140.0,115130.0,0.01967457]
[1755976704260,1.19115864,115140.0,115130.0,0.04315457]
[1755976704461,1.19115864,115140.0,115130.0,0.05278457]
[1755976705868,1.19815864,115140.0,115130.0,0.07750457]
[1755976706167,2.85027864,115140.0,115130.0,0.07750457]
[1755976707164,2.85027864,115140.0,115130.0,0.14006015]
[1755976707965,2.99457864,115140.0,115130.0,0.14006015]
[1755976708168,2.85027864,115140.0,115130.0,0.14006015]
[1755976709969,3.63647864,115140.0,115130.0,0.14006015]
[1755976710263,3.63647864,115140.0,115130.0,0.11718015]
[1755976710458,2.14152234,115140.0,115130.0,0.45100015]
[1755976710660,3.59689864,115140.0,115130.0,0.38844457]
[1755976710858,2.81069864,115140.0,115130.0,0.38844457]
[1755976711056,0.11314234,115140.0,115130.0,0.74810315]
[1755976711267,1.24166049,115140.0,115130.0,1.09065873]
[1755976711464,0.45546049,115140.0,115130.0,1.09065873]
[1755976711668,1.20666049,115140.0,115130.0,1.11499005]
[1755976711866,0.86434234,115140.0,115130.0,1.11499005]
[1755976712166,0.86434234,115140.0,115130.0,1.02810315]
[1755976712464,1.60161049,115140.0,115130.0,0.685785]
[1755976712862,1.94392864,115140.0,115130.0,0.685785]
[1755976713965,1.94392864,115140.0,115130.0,0.74834058]
[1755976716872,1.94392864,115140.0,115130.0,0.685785]
[1755976717074,1.94392864,115140.0,115130.0,0.76392539]
[1755976717363,1.94392864,115140.0,115130.0,0.685785]
[1755976719071,1.96804864,115140.0,115130.0,0.685785]
[1755976720876,1.96804864,115140.0,115130.0,0.74834866]
[1755976721675,1.28341234,115140.0,115130.0,0.74834866]
[1755976721974,1.96804864,115140.0,115130.0,0.74834866]
[1755976725078,1.28341234,115140.0,115130.0,0.74834866]
[1755976725278,1.96804864,115140.0,115130.0,0.74834866]
[1755976727179,1.96804864,115140.0,115130.0,0.403415]
[1755976727378,1.96804864,115140.0,115130.0,0.435785]
[1755976728682,1.96804864,115140.0,115130.0,0.403415]
[1755976729078,1.96804864,115140.0,115130.0,0.435785]
[1755976730279,3.62012864,115140.0,115130.0,0.435785]
[1755976730884,3.62012864,115140.0,115130.0,0.49835044]
[1755976732779,3.98092864,115140.0,115130.0,0.49835044]
[1755976735283,3.98092864,115140.0,115130.0,0.435785]
[1755976737187,3.98092864,115140.0,115130.0,0.49835732]
[1755976739694,3.98092864,115140.0,115130.0,0.45246732]
[1755976742697,3.98080864,115140.0,115130.0,0.50127732]
[1755976747202,3.98080864,115140.0,115130.0,0.438705]
[1755976750899,3.98076864,115140.0,115130.0,0.438705]
[1755976754104,2.32868864,115140.0,115130.0,0.438705]
[1755976754504,1.60708864,115140.0,115130.0,0.438705]
[1755976754701,2.32868864,115140.0,115130.0,0.438705]
[1755976760510,1.60708864,115140.0,115130.0,0.438705]
[1755976760705,2.32864864,115140.0,115130.0,0.438705]
[1755976761806,2.32864864,115140.0,115130.0,0.50130112]
[1755976765808,1.54264864,115140.0,115130.0,0.50130112]
[1755976766202,2.32864864,115140.0,115130.0,0.50130112]
[1755976766513,1.54264864,115140.0,115130.0,0.50130112]
[1755976766705,2.32864864,115140.0,115130.0,0.50130112]
[1755976772820,1.54264864,115140.0,115130.0,0.58818802]
[1755976773116,2.32860864,115140.0,115130.0,0.58818802]
[1755976773520,1.68292234,115140.0,115130.0,0.58580802]
[1755976773715,2.36755864,115140.0,115130.0,0.58580802]
[1755976774217,2.00112049,115140.0,115130.0,0.92812617]
[1755976774419,2.00112049,115140.0,115130.0,0.58580802]
[1755976774617,1.21516049,115140.0,115130.0,0.5232119]
[1755976774919,2.00112049,115140.0,115130.0,0.5232119]
[1755976777115,2.02524049,115140.0,115130.0,0.60135229]
[1755976778226,2.02524049,115140.0,115130.0,0.94367044]
[1755976780528,2.02524049,115140.0,115130.0,0.60135229]
[1755976780724,2.02524049,115140.0,115130.0,0.94367044]
[1755976781228,2.02524049,115140.0,115130.0,0.60135229]
[1755976781730,1.68292234,115140.0,115130.0,0.60135229]
[1755976782030,2.02524049,115140.0,115130.0,0.60135229]
[1755976784129,2.02520049,115140.0,115130.0,0.94367044]
[1755976785323,2.02520049,115140.0,115130.0,0.86553005]
[1755976787032,2.02520049,115140.0,115130.0,0.5232119]
[1755976787234,2.02520049,115140.0,115130.0,0.9280798]
[1755976787533,2.02520049,115140.0,115130.0,0.58576165]
[1755976787830,2.02520049,115140.0,115130.0,0.9280798]
[1755976788019,2.02520049,115140.0,115130.0,0.58576165]
[1755976792845,2.02520049,115140.0,115130.0,0.49887475]
[1755976793042,2.36751864,115140.0,115130.0,0.49887475]
[1755976794547,2.00671864,115140.0,115130.0,0.49887475]
[1755976794747,2.00671864,115140.0,115130.0,0.436325]
[1755976795846,2.00671864,115140.0,115130.0,0.5232119]
[1755976796446,1.64591864,115140.0,115130.0,0.5232119]
[1755976796648,2.00671864,115140.0,115130.0,0.5232119]
[1755976797249,2.00671864,115140.0,115130.0,0.58576165]
[1755976797439,1.64591864,115140.0,115130.0,0.58576165]
[1755976797646,2.00671864,115140.0,115130.0,0.58576165]
[1755976798750,2.00671864,115140.0,115130.0,0.49887475]
[1755976802552,2.00671864,115140.0,115130.0,0.436325]
[1755976802845,2.00671864,115140.0,115130.0,0.51446539]
[1755976802846,1.66440049,115140.0,115130.0,0.51446539]
[1755976807758,1.66440049,115140.0,115130.0,0.60135229]
[1755976808450,1.66436049,115140.0,115130.0,0.60135229]
[1755976810155,1.30356049,115140.0,115130.0,0.60135229]
[1755976810356,1.66436049,115140.0,115130.0,0.60135229]
[1755976827471,1.66436049,115140.0,115130.0,0.5232119]
[1755976829273,1.66436049,115140.0,115130.0,0.436325]
[1755976829875,0.87848049,115140.0,115130.0,0.77864315]
[1755976830078,1.66436049,115140.0,115130.0,0.77864315]
[1755976831272,1.66436049,115140.0,115130.0,0.86553005]
[1755976831472,1.6839753,115140.0,115130.0,0.60135229]
[1755976831676,0.55577715,115140.0,115130.0,0.94367044]
[1755976831973,1.6839753,115140.0,115130.0,0.94367044]
[1755976832975,1.6839753,115140.0,115130.0,0.92633001]
[1755976835076,1.6839753,115140.0,115130.0,0.84818962]
[1755976835477,1.6839753,115140.0,115130.0,0.58401186]
[1755976835478,1.3231753,115140.0,115130.0,0.58401186]
[1755976835678,1.3231753,115140.0,115130.0,0.92633001]
[1755976836981,0.5372953,115140.0,115130.0,0.92633001]
[1755976837282,1.3237353,115140.0,115130.0,0.91078645]
[1755976838480,1.3236953,115140.0,115130.0,0.91078645]
[1755976840285,1.3236953,115140.0,115130.0,0.5684683]
[1755976840583,1.3236953,115140.0,115130.0,0.91078645]
[1755976841582,0.98137715,115140.0,115130.0,0.91078645]
[1755976841782,1.3236953,115140.0,115130.0,0.91078645]
[1755976846185,1.3236953,115140.0,115130.0,0.84818962]
[1755976846379,1.3236953,115140.0,115130.0,0.92633001]
[1755976865513,0.5372953,115140.0,115130.0,0.92633001]
[1755976866015,1.3231753,115140.0,115130.0,0.92633001]
[1755976866315,0.5372953,115140.0,115130.0,0.92633001]
[1755976866517,1.3231753,115140.0,115130.0,0.92633001]
[1755976869720,1.3231753,115140.0,115130.0,0.58401186]
[1755976869909,1.3231753,115140.0,115130.0,0.92633001]
[1755976872221,1.3231753,115140.0,115130.0,0.58401186]
[1755976872416,1.3231753,115140.0,115130.0,0.92633001]
[1755976876024,1.3231753,115140.0,115130.0,0.58401186]
[1755976876237,1.3231753,115140.0,115130.0,0.92633001]
[1755976877226,1.3231753,115140.0,115130.0,0.58401186]
[1755976877527,1.3231753,115140.0,115130.0,0.92633001]
[1755976880628,1.3231753,115140.0,115130.0,0.58401186]
[1755976881018,1.3231753,115140.0,115130.0,0.92633001]
[1755976881628,1.6839753,115140.0,115130.0,0.92633001]
[1755976884430,1.6839753,115140.0,115130.0,0.58401186]
[1755976884634,1.6839753,115140.0,115130.0,0.92633001]
[1755976887333,1.6839753,115140.0,115130.0,0.83944311]
[1755976888436,1.6839753,115140.0,115130.0,0.49712496]
[1755976888639,1.6839753,115140.0,115130.0,0.83944311]
[1755976893835,1.3231753,115140.0,115130.0,0.83944311]
[1755976894039,1.6839753,115140.0,115130.0,0.83944311]
[1755976896432,0.55577715,115140.0,115130.0,0.92633001]
[1755976896735,1.6839753,115140.0,115130.0,0.92633001]
[1755976899643,1.3231753,115140.0,115130.0,0.92633001]
[1755976899942,1.3231753,115140.0,115130.0,0.58401186]
[1755976900143,1.6839753,115140.0,115130.0,0.92633001]
[1755976906841,1.3231753,115140.0,115130.0,0.92633001]
[1755976907040,1.6839753,115140.0,115130.0,0.92633001]
[1755976908444,1.6839753,115140.0,115130.0,0.49712496]
[1755976908643,1.6839753,115140.0,115130.0,0.83944311]
[1755976911851,1.6839753,115140.0,115130.0,0.92633001]
[1755976914658,1.6839753,115140.0,115130.0,0.84818962]
[1755976916161,2.02629345,115140.0,115130.0,0.50587147]
[1755976917262,2.02629345,115140.0,115130.0,0.56847055]
[1755976917461,1.24041345,115140.0,115130.0,0.56847055]
[1755976917659,1.65208,115150.0,115140.0,0.0868794]
[1755976917963,0.52241836,115160.0,115150.0,0.2076018]
[1755976918148,1.25577432,115160.0,115150.0,1.04846846]
[1755976918354,0.8940142,115170.0,115160.0,0.1259043]
[1755976918663,1.6798142,115170.0,115160.0,0.61010565]
[1755976920865,2.02513235,115170.0,115160.0,0.61110565]
[1755976921364,2.02713235,115170.0,115160.0,0.61110565]
[1755976927060,2.02713235,115170.0,115160.0,0.5485943]
[1755976927667,1.6575067,115170.0,115160.0,0.5485943]
[1755976927861,1.31518855,115170.0,115160.0,0.5485943]
[1755976934064,1.31510855,115170.0,115160.0,0.5485943]
[1755976934374,1.31510855,115170.0,115160.0,0.61110565]
[1755976934570,1.31510855,115170.0,115160.0,0.9534238]
[1755976934874,1.31510855,115170.0,115160.0,0.61110565]
[1755976939074,1.31506855,115170.0,115160.0,0.61110565]
[1755976944480,1.31506855,115170.0,115160.0,0.52424135]
[1755976945274,1.6573867,115170.0,115160.0,0.52424135]
[1755976946378,1.6573867,115170.0,115160.0,0.53442724]
[1755976947277,1.6573867,115170.0,115160.0,0.55014919]
[1755976949280,2.0181867,115170.0,115160.0,0.47191589]
[1755976949480,2.0181867,115170.0,115160.0,0.47191609]
[1755976950075,1.67586855,115170.0,115160.0,0.47191609]
[1755976950471,1.67586855,115170.0,115160.0,0.55014939]
[1755976952371,1.67582855,115170.0,115160.0,0.63701359]
[1755976953081,1.67582855,115170.0,115160.0,0.55014939]
[1755976954583,1.67582855,115170.0,115160.0,0.63701369]
[1755976958687,0.06744,115170.0,115160.0,0.60423369]
[1755976958875,0.79052,115170.0,115160.0,1.22908184]
[1755976959080,0.79052,115170.0,115160.0,1.15084854]
[1755976959280,0.005,115170.0,115160.0,1.85396567]
[1755976959483,2.05364853,115190.0,115180.0,0.2048892]
[1755976959778,1.71133038,115190.0,115180.0,0.95551671]
[1755976959976,2.49685038,115190.0,115180.0,1.23819242]
[1755976960174,1.67638038,115190.0,115180.0,1.31622994]
[1755976960372,0.03995,115200.0,115180.0,1.56622994]
[1755976960578,0.88077967,115210.0,115200.0,0.1349041]
[1755976960779,0.51997967,115210.0,115200.0,0.96752886]
[1755976961076,1.30569967,115210.0,115200.0,0.90511565]
[1755976961276,1.30569967,115210.0,115200.0,0.96745881]
[1755976961477,1.39252627,115210.0,115200.0,0.96745881]
[1755976961684,1.32259475,115210.0,115200.0,0.96745881]
[1755976963087,1.32259475,115210.0,115200.0,0.96945881]
[1755976963285,1.32247475,115210.0,115200.0,0.96945881]
[1755976964683,1.32243475,115210.0,115200.0,0.96945589]
[1755976964989,0.53687475,115210.0,115200.0,0.90711273]
[1755976965186,1.32243475,115210.0,115200.0,0.90711273]
[1755976966186,0.53687475,115210.0,115200.0,0.90711273]
[1755976966386,1.32235475,115210.0,115200.0,0.90711273]
[1755976967186,0.9800366,115210.0,115200.0,0.90711273]
[1755976967489,1.32235475,115210.0,115200.0,0.90711273]
[1755976968386,1.32235475,115210.0,115200.0,0.89693058]
[1755976969686,1.32235475,115210.0,115200.0,0.55461243]
[1755976969984,1.32235475,115210.0,115200.0,0.89693058]
[1755976971087,1.32235475,115210.0,115200.0,0.55461243]
[1755976971882,0.39245815,115210.0,115200.0,0.89693058]
[1755976972087,0.42740815,115210.0,115200.0,0.89693058]
[1755976972290,1.21264815,115210.0,115200.0,0.89693058]
[1755976973789,0.87033,115210.0,115200.0,0.89693058]
[1755976974489,0.9571566,115210.0,115200.0,0.89693058]
[1755976974792,0.9571566,115210.0,115200.0,0.90711236]
[1755976975482,0.9571566,115210.0,115200.0,0.89693058]
[1755976976889,1.29947475,115210.0,115200.0,0.89693058]
[1755976977590,1.29947475,115210.0,115200.0,0.90711236]
[1755976977789,1.32340475,115210.0,115200.0,0.89693058]
[1755976977989,1.32340475,115210.0,115200.0,0.90711236]
[1755976980696,0.9810866,115210.0,115200.0,0.90711236]
[1755976980994,1.32340475,115210.0,115200.0,0.90711236]
[1755976983392,0.9810866,115210.0,115200.0,0.90711236]
[1755976983698,1.32340475,115210.0,115200.0,0.90711236]
[1755976984095,1.32340475,115210.0,115200.0,0.56479421]
[1755976984301,1.32340475,115210.0,115200.0,0.90711236]
[1755976985195,1.32340475,115210.0,115200.0,0.62713737]
[1755976985399,1.32340475,115210.0,115200.0,0.96945552]
[1755976986295,1.32340475,115210.0,115200.0,0.62713737]
[1755976986495,1.32340475,115210.0,115200.0,0.92240552]
[1755976987096,1.32340475,115210.0,115200.0,0.97059552]
[1755976987800,1.32340475,115210.0,115200.0,0.97059553]
[1755976988188,1.32340475,115210.0,115200.0,0.98628989]
[1755976988500,1.32340475,115210.0,115200.0,0.90825237]
[1755976989102,1.32340475,115210.0,115200.0,0.98628989]
[1755976990402,1.32340475,115210.0,115200.0,0.64397174]
[1755976990601,1.32340475,115210.0,115200.0,0.98628989]
[1755976997606,1.32340475,115210.0,115200.0,0.9761081]
[1755976997808,1.32340475,115210.0,115200.0,0.98628988]
[1755977001403,1.32340475,115210.0,115200.0,0.95182988]
[1755977001609,1.32340475,115210.0,115200.0,0.93809988]
[1755977001810,1.32340475,115210.0,115200.0,0.98628988]
[1755977006218,1.32340475,115210.0,115200.0,0.9761081]
[1755977007510,1.32340475,115210.0,115200.0,0.89807058]
[1755977008317,1.32340475,115210.0,115200.0,1.00744459]
[1755977009616,1.32340475,115210.0,115200.0,1.08556209]
[1755977010010,1.32340475,115210.0,115200.0,0.97618808]
[1755977010617,0.9810866,115210.0,115200.0,0.97618808]
[1755977010818,1.32340475,115210.0,115200.0,0.97618808]
[1755977012118,2.2765229,115210.0,115200.0,0.035]
[1755977012321,0.1400441,115200.0,115190.0,0.17188079]
[1755977012521,1.53804437,115200.0,115190.0,0.06250678]
[1755977013917,1.53804437,115200.0,115190.0,0.08634678]
[1755977014517,1.53804437,115200.0,115190.0,0.06350678]
[1755977014825,1.78804437,115200.0,115190.0,0.001]
[1755977016321,2.57424437,115200.0,115190.0,0.001]
[1755977017433,0.0868502,115180.0,115170.0,0.02284]
[1755977017615,1.57608835,115180.0,115170.0,0.17284]
[1755977017922,1.57608835,115180.0,115170.0,0.33284]
[1755977018121,1.59572456,115180.0,115170.0,0.33284]
[1755977018815,1.59672456,115180.0,115170.0,0.33584]
[1755977019714,0.02063621,115180.0,115170.0,1.8130831]
[1755977020228,0.73629212,115200.0,115190.0,0.2046317]
[1755977020410,0.71666212,115200.0,115190.0,0.82694985]
[1755977020613,0.1989172,115220.0,115210.0,0.1809966]
[1755977020816,1.68843535,115220.0,115210.0,0.08347]
[1755977021021,1.68879535,115220.0,115210.0,0.11779]
[1755977021220,0.90203535,115220.0,115210.0,0.11779]